[Event "Saint Louis Invitational-B 2018"]
[Site "Saint Louis"]
[Date "2018.11.17"]
[Round "2"]
[White "Arjun, Vishnuvardhan"]
[Black "Marek, Matyas"]
[Result "1/2-1/2"]
[ECO "E68"]
[WhiteElo "2247"]
[BlackElo "2361"]
[Annotator "ChessBase"]
[PlyCount "32"]
[EventDate "2018.11.16"]
[EventType "tourn"]
[EventCountry "USA"]
[SourceTitle "playchess.com"]
[Source "ChessBase"]
[SourceQuality "1"]
[TimeControl "5400+30"]

1. Nf3 {[%emt 0:00:00]} Nf6 {[%emt 0:00:00]} 2. g3 {[%emt 0:00:09]} g6 {[%emt 0:00:49]} 3. Bg2 {[%emt 0:00:23]} Bg7 {[%emt 0:00:07]} 4. O-O {[%emt 0:00:37]} O-O {[%emt 0:00:00]} 5. d4 {[%emt 0:03:23]} d6 {[%emt 0:00:15]} 6. c4 {[%emt 0:03:39]} Nbd7 {[%emt 0:00:55]} 7. Nc3 {[%emt 0:12:21]} e5 {[%emt 0:04:22]} 8. e4 {[%emt 0:11:42]} c6 9. b3 {[%emt 0:00:07]} exd4 {[%emt 0:06:35]} 10. Nxd4 {[%emt 0:07:42]} Re8 {[%emt 0:07:11]} 11. Bf4 {[%emt 0:14:13]} Nc5 {[%emt 0:05:19]} 12. Re1 {[%emt 0:06:56]} Ng4 13. Qd2 {[%emt 0:00:31]} Ne5 {[%emt 0:08:04]} 14. Be3 {[%emt 0:00:52]} Ng4 {[%emt 0:08:58]} 15. Bf4 {[%emt 0:01:16]} Ne5 16. Be3 Ng4 1/2-1/2